Cogmind - Beta 16.1 @@@ ROGUE MODE // 2026.04.03 @ 13:25:52 Player: RHAHI Result: Destroyed by A5-HQA(R) with Subdweller Laser Performance ------------- Evolutions (0) 0 Regions Visited (2) 400 Robots Destroyed (24) 120 Value Destroyed (490) 490 Prototype IDs (5) 100 Alien Tech Used (0) 0 Bonus (0) 0 TOTAL SCORE: 1110 Bonus ------- None Cogmind --------- Core Integrity 0/250 Matter 270/300 Energy 127/200 System Corruption 0% Temperature Cool (6) Movement Flying (280) Ox3 Location -10/Subcaves Parts ------- > --- POWER (1) -------- Subdweller Power Source > --- PROPULSION (2) --- Flight Unit > --- UTILITY (2) ------ Improved Targeting Computer > --- WEAPON (2) ------- Subdweller Laser Subdweller Machine Gun > --- INVENTORY (5) ---- Subdweller Monowheel Seismic Detector Battle Cannon Grenade Launcher Shrapnel Trap Peak State ------------ > --- POWER ------------ Subdweller Power Source > --- PROPULSION ------- Flight Unit Makeshift Flight Unit > --- UTILITY ---------- Improved Terrain Scanner Improved Targeting Computer > --- WEAPON ----------- Subdweller Laser Subdweller Machine Gun > --- INVENTORY -------- Subdweller Monowheel Seismic Detector Battle Cannon Grenade Launcher Shrapnel Trap [Rating: 16] Favorites ----------- Power Subdweller Power Source Engine Subdweller Power Source Propulsion Flight Unit Leg Aluminum Leg Wheel Wheel Hover Unit Backup Propulsion I Flight Unit Flight Unit Utility Improved Terrain Scanner Device Improved Terrain Scanner Storage Small Storage Unit Processor Improved Targeting Computer Protection Light Armor Plating Weapon Autogun Energy Gun Subdweller Laser Ballistic Gun Autogun Special Weapon Mining Laser Build | -11 -10 -10 ------- Run | Yrd Mat Sub Slots Evolved . | . . . Power . | . . . Propulsion . | . . . Utility . | . . . Weapon . | . . . Parts Attached 26 | 4 13 9 Power 1 | . . 1 Engine 1 | . . 1 Core . | . . . Reactor . | . . . Propulsion 8 | . 6 2 Treads . | . . . Leg 1 | . . 1 Wheel 1 | . 1 . Hover 3 | . 3 . Flight 3 | . 2 1 Utility 7 | 2 3 2 Device 3 | 1 1 1 Storage 1 | 1 . . Processor 2 | . 1 1 Hackware . | . . . Protection 1 | . 1 . Artifact . | . . . Weapon 10 | 2 4 4 Energy Gun 1 | . . 1 Energy Cannon . | . . . Ballistic Gun 8 | 2 3 3 Ballistic Cannon . | . . . Launcher . | . . . Special Weapon 1 | . 1 . Impact Weapon . | . . . Slashing Weapon . | . . . Piercing Weapon . | . . . Special Melee Weapon . | . . . Unidentified Prototypes . | . . . Parts Lost 10 | . 2 8 Power 1 | . . 1 Propulsion 4 | . 2 2 Utility 2 | . . 2 Weapon 3 | . . 3 Highest Loss Streak 2 | . 1 2 To Critical Strikes . | . . . Average Backups 4 | 2 4 4 Power . | 1 . . Propulsion . | . . . Utility 2 | 1 2 2 Weapon 1 | . 1 2 Tool/Special . | . . . Unused Backups 6 | . 2 4 Power 3 | . 2 1 Propulsion 1 | . . 1 Utility . | . . . Weapon 2 | . . 2 Tool/Special . | . . . Average Slot Usage (%) 91 | . 96 91 Engine 13 | . 13 13 Hover 2 | . 18 . Flight 18 | . 7 19 Device 15 | . 23 14 Processor 12 | . 2 13 Energy Gun 2 | . . 2 Ballistic Gun 24 | . 20 24 Peak Build Rating 16 | 3 11 16 Average Rating 11 | 2 10 12 On Entrance 4 | . 3 10 Avg Prop Armor Cover (%) 4 | . 8 4 Naked Turns . | . . . Heaviest Build 15 | 3 9 15 Greatest Support 12 | 3 12 12 Greatest Overweight (x) 4 | . 1 4 Average Overweight (x) . | . . . Largest Inventory Capacity 8 | 8 5 5 Average Capacity 5 | 5 5 5 Most Carried 5 | 5 5 5 Average Carried 4 | 2 4 4 Final Capacity 5 | 5 5 5 Final Carried 5 | 5 5 5 Class Distribution -------------------- 66% | Scavenger-Mutant 33% | Mutant Dominant Class ---------------- Mutant | -10/Materials Scavenger-Mutant | -10/Subcaves Resources | -11 -10 -10 ----------- Run | Yrd Mat Sub Matter Collected 1194 | 262 416 516 Remotely . | . . . Salvage Created 749 | 80 276 393 Parts 62 | 11 25 26 Haulers Intercepted 2 | . 2 . Recyclers Shooed . | . . . Parts Field Recycled . | . . . Retrieved Matter . | . . . Parts Self-Destructed 7 | . . 7 Prevented . | . . . Parts Restored . | . . . Kills | -11 -10 -10 ------- Run | Yrd Mat Sub Combat Hostiles Destroyed 15 | . 7 8 Guns 15 | . 7 8 Classes Destroyed 7 | 1 5 1 Worker 1 | . 1 . Tunneler 4 | 4 . . Hauler 2 | . 2 . Watcher 2 | . 2 . Swarmer 6 | . 6 . Grunt 3 | . 1 2 Subdweller 6 | . . 6 Best Kill Streak 4 | 4 3 2 Combat Bots Only 3 | . 3 2 Max Kills in Single Turn 2 | 1 2 1 Gunslinging 1 | . 1 . Exploded . | . . . Melee . | . . . Uniques/NPCs Destroyed . | . . . Combat | -11 -10 -10 -------- Run | Yrd Mat Sub Hostile Shots Fired 66 | . 22 44 Missed 17 | . 7 10 Hits 49 | . 15 34 Projectile 49 | . 15 34 Critical Strikes 1 | . . 1 Damage Taken 897 | . 242 655 Core 253 | . 137 116 Absorbed by Shields . | . . . Core Remaining (%) 100 | 100 . . Volleys Fired 103 | 14 39 50 Largest 2 | 2 2 2 Hottest 123 | 40 123 90 Shots Fired 172 | 28 65 79 Gun 160 | 28 53 79 Cannon . | . . . Launcher . | . . . Special 12 | . 12 . Kinetic 153 | 28 53 72 Thermal 19 | . 12 7 Explosive . | . . . Electromagnetic . | . . . Robot Hit Streak 19 | 7 7 19 Robot Miss Streak 4 | 2 4 1 Penetration Max . | . . . Secondary Targets 2 | . 1 1 Max Gunslinging Chain 1 | . 1 1 Shots Hit Robots 99 | 19 31 49 Core Hits 37 | 6 15 16 Critical Kills 2 | . 1 1 Critical Parts Destroyed . | . . . Critical Strikes 2 | . 1 1 Destroy 2 | . 1 1 Melee Attacks . | . . . Impact . | . . . Slashing . | . . . Piercing . | . . . Sneak Attacks . | . . . Combat Hostiles . | . . . Follow-up Attacks . | . . . Damage Inflicted 1461 | 152 441 868 Guns 1432 | 152 412 868 Cannons . | . . . Explosions 29 | . 29 . Melee . | . . . Ramming . | . . . Kinetic 1281 | 152 412 717 Thermal 151 | . . 151 Explosive 29 | . 29 . Electromagnetic . | . . . Impact . | . . . Slashing . | . . . Piercing . | . . . Highest Corruption . | . . . Average Corruption . | . . . Corruption Purged . | . . . Corruption Blocked . | . . . Overload Shots . | . . . Overflow Damage . | . . . Projectiles . | . . . Explosions . | . . . Melee . | . . . Knockbacks . | . . . Impact . | . . . Kinetic . | . . . Secondary . | . . . Self-Inflicted Damage 111 | . 111 . Shots 1 | . 1 . Rammed . | . . . Targets Rammed . | . . . Kicked . | . . . Crushed . | . . . Highest Temperature 44 | . 44 . Average Temperature 11 | . 11 . Received Heat Transfer 192 | . 18 174 Siege Activations . | . . . Martial Activations . | . . . Shielding Activations . | . . . Robots Disrupted . | . . . Combat Hostiles . | . . . Robots Corrupted . | . . . Combat Hostiles . | . . . Parts Fried . | . . . Impact Corruptions . | . . . Robots Melted . | . . . Combat Hostiles . | . . . Parts Melted 2 | . . 2 Heat Transferred 175 | . . 175 Parts Sabotaged . | . . . Parts Stolen . | . . . Parts Stripped . | . . . Power Chain Reactions . | . . . Alert | -11 -10 -10 ------- Run | Yrd Mat Sub Maximum Alert Level . | . . . Low Security (%) 100 | 100 100 . Level 1 . | . . . Level 2 . | . . . Level 3 . | . . . Level 4 . | . . . Level 5 . | . . . High Security . | . . . Max Security . | . . . Peak Influence 108 | 10 108 . Initial 3 | . 3 . Average 34 | 1 37 . Influence Increases 493 | 20 423 50 Destroy 0b10 Robot/C 180 | . 140 40 Destroy 0b10 Robot/NC 45 | 20 25 . Destroy Leader 48 | . 38 10 Successful Hack 49 | . 49 . Select Force Hacks 60 | . 60 . Disable Machine 15 | . 15 . Destroy Structure 36 | . 36 . Partial Spotted 15 | . 15 . Lose Combat Pursuer 45 | . 45 . Influence Decreases 463 | 15 338 110 Entered New Map 46 | . 2 44 Time Decay 367 | 15 316 36 Lost Part 50 | . 20 30 Squads Dispatched 2 | . 2 . Investigation 2 | . 2 . Extermination . | . . . Reinforcement . | . . . Assault . | . . . Garrison . | . . . Intercept . | . . . Searches Triggered . | . . . Construction Impeded . | . . . Haulers Reinforced . | . . . Active Scanning Responses . | . . . Cargo Convoy Interrupts . | . . . Stealth | -11 -10 -10 --------- Run | Yrd Mat Sub Distress Signals 1 | . 1 . Communications Jammed . | . . . Distress Signals . | . . . Times Spotted 30 | . 15 15 Peak Tracking Total 4 | . 4 2 Tactical Retreats 4 | . 2 2 Traps | -11 -10 -10 ------- Run | Yrd Mat Sub Traps Triggered 2 | . 1 1 Indirectly . | . . . Trap Hack Attempts . | . . . Triggered . | . . . Disarmed . | . . . Reprogrammed . | . . . Reused . | . . . Traps Extracted . | . . . Installed . | . . . Triggered . | . . . Most Traps Carried 1 | . . 1 Machines | -11 -10 -10 ---------- Run | Yrd Mat Sub Machines Disabled 1 | . 1 . Max in Single Turn 1 | . 1 . Machines Repaired . | . . . Machines Dismantled . | . . . Machines Sabotaged . | . . . Overloaded Fab Kills . | . . . Hacking | -11 -10 -10 --------- Run | Yrd Mat Sub Machines Accessed 11 | . 10 1 Terminals 7 | . 7 . Fabricators . | . . . Repair Stations 1 | . 1 . Recycling Units 2 | . 2 . Scanalyzers . | . . . Garrison Access . | . . . Total Hacks 30 | . 27 3 Successful 21 | . 18 3 Failed 9 | . 9 . Catastrophic 1 | . 1 . Database Lockouts . | . . . Manual 19 | . 19 . Terminals 21 | . 21 . Fabricators . | . . . Repair Stations 1 | . 1 . Recycling Units 5 | . 5 . Scanalyzers . | . . . Garrison Access . | . . . Terminal Hacks 10 | . 7 3 Record 3 | . . 3 Robot Analysis 1 | . 1 . Prototype ID Bank 4 | . 4 . Locate Traps 2 | . 2 . Fabricator Hacks . | . . . Repair Station Hacks 1 | . 1 . Refit 1 | . 1 . Recycling Unit Hacks 1 | . 1 . Retrieve Components 1 | . 1 . Scanalyzer . | . . . Garrison Access Hacks . | . . . Unauthorized Hacks 9 | . 9 . Terminals 7 | . 7 . Botnet 2 | . 2 . Skim 5 | . 5 . Fabricators . | . . . Repair Stations . | . . . Recycling Units 2 | . 2 . Tunnel 2 | . 2 . Scanalyzers . | . . . Garrison Access . | . . . Data Cores Recovered . | . . . Used . | . . . Hacking Detections 9 | . 9 . Full Trace Events . | . . . Feedback Events . | . . . Feedback Blocked . | . . . Robot Schematics Acquired . | . . . Robots Built . | . . . Authchips . | . . . Time . | . . . Total Robot Build Rating . | . . . Part Schematics Acquired . | . . . Parts Built . | . . . Authchips . | . . . Time . | . . . Total Part Build Rating . | . . . Part Studies Acquired . | . . . Parts Repaired . | . . . Time . | . . . Parts Recycled . | . . . Recycled Matter . | . . . Retrieved Matter . | . . . Retrieved Components 2 | . 2 . Parts Scanalyzed . | . . . Part Schematics Acquired . | . . . Parts Damaged . | . . . Bothacking | -11 -10 -10 ------------ Run | Yrd Mat Sub Used RIF Installer . | . . . Robots Hacked . | . . . Non-combat . | . . . Combat . | . . . Robot Hacks Applied . | . . . Relay Couplers Released . | . . . Fabnet Peak Effective % . | . . . Robots Rewired . | . . . Allies Hacked . | . . . Hacks Repelled . | . . . Allies | -11 -10 -10 -------- Run | Yrd Mat Sub Total Allies . | . . . Largest Group . | . . . Highest-Rated Group . | . . . Highest-Rated Ally . | . . . Total Orders . | . . . Ally Attacks . | . . . Total Damage . | . . . Kills . | . . . Allies Corrupted . | . . . Allies Melted . | . . . Intel | -11 -10 -10 ------- Run | Yrd Mat Sub Active Infowar (turns) 6495 | 26 864 5605 Optics 77 | . . 77 Terrain 5765 | . 800 4965 Seismic 1466 | 26 684 756 T.N.C. 175 | . 175 . Robot Analysis Total 1 | . 1 . Derelict Logs Recovered 1 | . . 1 Drone Launches . | . . . Drone Recoveries . | . . . Exploration | -11 -10 -10 ------------- Run | Yrd Mat Sub Turns Passed 6738 | 83 864 5791 Spaces Moved 2306 | 66 1055 1185 Core 280 | 66 11 203 Treads . | . . . Legs 108 | . . 108 Wheels . | . . . Hover 737 | . 737 . Flight 1181 | . 307 874 Fastest Speed 37 | 50 37 37 Average Speed 84 | 50 62 105 Slowest Speed 250 | 50 117 250 Overloaded Moves . | . . . Propulsion Burnouts . | . . . Robots Hopped 5 | . 5 . Potential Cave-ins . | . . . Cave-ins Triggered . | . . . Exploration Rate (%) 47 | 3 96 44 Regions Visited 2 Branch Regions 1 Pre-discovered Areas 4 | . 3 1 Known Exits Taken 1 | . 1 . Unknown Exits Taken 1 | 1 . . Scrap Searched 7 | . . 7 Spaces Dug 3 | . 3 . Terrain Destroyed 39 | . 39 . Melee . | . . . Projectile 4 | . 4 . AOE 35 | . 35 . Terrain Rammed . | . . . Walls Destroyed . | . . . Machines Disabled . | . . . Actions | -11 -10 -10 --------- Run | Yrd Mat Sub Total 6904 | 91 1175 5638 Wait 4402 | 3 45 4354 Move 2294 | 65 1044 1185 Hop 5 | . 5 . Pick Up 17 | 4 6 7 Fast Attach 12 | 4 5 3 Attach 8 | . 3 5 Detach 4 | 1 2 1 Swap 44 | . 16 28 Drop 15 | . 10 5 Fire 103 | 14 39 50 Melee . | . . . Ram . | . . . Kick . | . . . Crush . | . . . Escape Stasis . | . . . Rewire . | . . . Trap . | . . . Miscellaneous . | . . . Route ------- -11/Scrapyard -10/Materials (discovered 5 exits: *Mat x3 / [*Min] / *Sub) -10/Subcaves (discovered 2 exits: [*Mat x2]) History --------- Turn | Location | Event 2 | -11/Scrapyard | Met Revision 17 3 | -11/Scrapyard | Discovered new exit (range 16) 84 | -11/Scrapyard | Entered Materials 200 | -10/Materials | Discovered new exit (range 5) 333 | -10/Materials | Build established: Mutant 422 | -10/Materials | Discovered new exit (range 12) 510 | -10/Materials | Discovered new exit (range 7) 536 | -10/Materials | Identified exit to Subcaves 536 | -10/Materials | Identified exit to Materials 557 | -10/Materials | Learned location of Subcaves (-10) 577 | -10/Materials | Loaded intel: 1 repair station location 888 | -10/Materials | Core integrity fell below 50% 948 | -10/Materials | Entered Subcaves 1015 | -10/Subcaves | Build established: Scavenger-Mutant 1033 | -10/Subcaves | Visited Clippyterm 1034 | -10/Subcaves | Learned Factory trap positions 1060 | -10/Subcaves | Discovered new exit (range 8) 1063 | -10/Subcaves | Shifting Twisted Machinery released Sub. Power Source 1063 | -10/Subcaves | Shifting Twisted Machinery released Mak. Laser 1437 | -10/Subcaves | Build established: Mutant 1788 | -10/Subcaves | A swath of the cavern ceiling suddenly collapsed 2873 | -10/Subcaves | Discovered new exit (range 9) 3188 | -10/Subcaves | Build established: Scavenger-Mutant 5637 | -10/Subcaves | Core integrity fell below 20% 6739 | -10/Subcaves | Destroyed by A5-HQA(R) with Subdweller Laser Last Messages --------------- 05889_ Acquired 2 matter. 05890_ Searching scrap... 05890_ Found Mak. Flight Unit. 05890_ Found 63 Matter. 05894_ Dropped Aluminum Leg. 05897_ Acquired Mak. Flight Unit. 05898_ Searching scrap... 05898_ Found Barrage Gun. 05898_ Found 52 Matter. 05899_ Acquired 10 matter. 05902_ Dropped Sub. Machine Gun. 06340_ Acquired 30 matter. 06598_ Subatomizers dissect the Sub. Machine Gun. 06672_ Subatomizers dissect the Sub. Machine Gun, destroying it. 06732_ A5-HQA(R) affixes Scrap Shield Fragment to Scrap Shield. 06733_ Mak. Flight Unit destroyed. 06737_ Imp. Terrain Scanner destroyed. Map ----- +----------------------------------------------------+ | ?????????????????##"""## #"""#??? ??# | | ???????#######?###"" # " #?#????? | | ???????#""" "### #??????? | | ???????# "" *### ## ###??????? | | ???????# ##%^ "## ####?????#????? | | ??????????#% ## #?????????????? | | ??????? ??#! "# ##????????????? | | ??????????### ## ##????#??????? | | ???????????# #" ##?#??#?????? | | ???????????# ##?????????? | | ???????????# #####?????? | | ??????????## #"" ##????#?#??? | | ??????????#" ###" ###?##?????? | | ??????????#" "## #?#?#???#?? | | ???#????###! "### ##???#???#? | | ??????#?# ! ##### ###??#?#???? | | ?????#?######### ##?#???????? | | ???#?#???###?## #??????#???? | | ????#?##????#?## ##?????????? | | ?#?????#?#####?#### #???#?????## | | ???#???????#?#??### #??#???###?? | | ##??#??#?######## #??#????##?? | | #???#?#???### ###???#??##? | | ??##????#?## #### #######?###???? | | #???#??#??## ##""## #?????#??#???#? | | #???#?????##@#" %"# ##?#?##??#????# | | #??#???????# <%%"# ####??????#??# | | #?????###?##R#R<<## #??#?#?###???# | | ???????##### #### ###?##???#????? | | ?#?????###### #??##????#?#?# | | ???????#???###### #???##?????#?? | | ????????????##?# # #####????????#? | | ###??#???????### # #?#??#?????#?# | | ##??###??????#?## # #?#?#????#??#? | | #??###????????## ##?#???#?????? | | #??#??#?#??#???## ##?##????????? | | ????????#??#?#??# #??##??#?????? | | ???#??##???##??#### ###??#???????? | | ??#?####??##???#??# ##?##?????????? | | ??#?????###????#?#### ?????????????? | | ???????????#??#?#?#?? ????????????? | | ????????####????????? ????????????? | | ???????#???#?#?##?#?? ????????????? | | ???????????#?????#??## ????????????? | | ?????????????#??#???????????????????? | | ????????????????????????????????????? | | ????????????????????????????????????? | | ????????????????????????????????????? | | ????????????????????????????????????? | | ????????????????????????????????????? | +----------------------------------------------------+ Best States ------------- Heat Dissipation 25 Energy Generation 9 Energy Capacity 200 Matter Stores 300 Matter Capacity 300 Sight Range 21 Terrain Scan Range 16 Terrain Scan Density 10 Armor Coverage 150 Evasion (%) 62 Targeting Accuracy 6 Item Schematics ----------------- None Robot Schematics ------------------ None Fabricated ------------ Nothing Repaired ---------- Nothing Studied --------- None Alien Tech Used ----------------- None Achievements -------------- None Challenges ------------ None Game ------ Seed PulsarEnergyHarness Manual? 0 Play Time 00:53:48 Cumulative 124.7 hours Start 2026.04.02 @ 23:27:17 End 2026.04.03 @ 13:25:52 Sessions 3 Manual Loads 0 Difficulty Rogue Special Mode None Game No. 48 Rogue 47 Adventurer 1 Explorer 0 Win Type - Total 2 Types 1/0/1/0/0/0/0/0/0/0 Lore% 46 Gallery% 46 Achievement% 42 Wizard Run 0 Options --------- Layout 2 ASCII 0 Keyboard 1 Movement Vi Keybinds 1 Fullscreen 2 Font 32/Terminus Map View 50x44 Zoom Use 0% Tactical HUD 1 Map Filters NONE Filters NONE Steam 1 RUN: c94dcf2c-fd50-4667-b0c1-47ed5ba20ac7